bitfinex-derivatives/quotes_BTCF0:USTF0_20250121
["timestamp","ask_amount","ask_price","bid_price","bid_amount"]
[1737476565000,6.407e-05,106110.0,106100.0,0.18450393]
[1737476565193,0.00106407,106110.0,106100.0,0.18950393]
[1737476565396,0.00106407,106110.0,106100.0,0.55030393]
[1737476565689,0.00014126,106120.0,106100.0,0.50914393]
[1737476565895,0.36094126,106120.0,106110.0,0.047155]
[1737476566396,0.36094126,106120.0,106110.0,0.02358432]
[1737476566794,0.36194126,106120.0,106110.0,0.02358432]
[1737476567002,0.40909226,106120.0,106110.0,0.02358432]
[1737476567198,0.36194126,106120.0,106110.0,0.02358432]
[1737476567604,0.36294126,106120.0,106110.0,0.02358432]
[1737476568191,0.40909226,106120.0,106110.0,0.02358432]
[1737476568396,0.41009226,106120.0,106110.0,0.03158432]
[1737476568708,0.41009226,106120.0,106110.0,0.008]
[1737476571602,0.00214126,106120.0,106110.0,0.008]
[1737476571802,0.00214126,106120.0,106110.0,0.055155]
[1737476572509,0.36294126,106120.0,106110.0,0.07990417]
[1737476573191,0.36294126,106120.0,106110.0,0.03274917]
[1737476573597,0.36294126,106120.0,106110.0,0.07990417]
[1737476573900,0.3608,106150.0,106130.0,0.047145]
[1737476574095,0.407938,106150.0,106120.0,0.40795]
[1737476574301,0.407938,106150.0,106120.0,0.04715]
[1737476574501,0.407944,106140.0,106110.0,0.76498285]
[1737476574697,0.047147,106130.0,106110.0,0.72666467]
[1737476575006,0.047151,106120.0,106110.0,0.24315193]
[1737476575301,0.047138,106150.0,106110.0,0.88489205]
[1737476575501,0.3608,106140.0,106120.0,0.002]
[1737476575700,0.407943,106140.0,106120.0,0.002]
[1737476575901,0.001,106130.0,106120.0,0.049151]
[1737476576098,0.001,106130.0,106120.0,0.047151]
[1737476576806,0.001,106130.0,106110.0,0.64709526]
[1737476577201,0.001,106130.0,106110.0,0.66183274]
[1737476577400,0.048147,106130.0,106110.0,0.66183274]
[1737476577601,0.001,106130.0,106110.0,0.66183274]
[1737476577905,0.048147,106130.0,106110.0,0.63025917]
[1737476578211,0.407951,106120.0,106110.0,0.03845917]
[1737476578606,0.407951,106120.0,106040.0,0.40808986]
[1737476578607,0.047159,106110.0,106060.0,0.047177]
[1737476578910,0.047159,106110.0,106040.0,0.77764065]
[1737476578911,0.04717,106080.0,106050.0,0.0570748]
[1737476579212,0.04717,106080.0,106050.0,0.047179]
[1737476579403,0.04717,106080.0,106060.0,0.047177]
[1737476579604,0.04717,106080.0,106060.0,0.06090969]
[1737476579905,0.04717,106080.0,106060.0,0.06105095]
[1737476579906,0.00014126,106080.0,106060.0,0.06105095]
[1737476580106,0.00014126,106080.0,106070.0,0.047173]
[1737476580910,0.00014126,106080.0,106060.0,0.05431726]
[1737476581115,0.00114126,106080.0,106060.0,0.05431726]
[1737476581407,0.36294126,106080.0,106070.0,0.007]
[1737476581598,0.36194126,106080.0,106070.0,0.016]
[1737476581807,0.41011026,106080.0,106070.0,0.016]
[1737476582306,0.047173,106070.0,106060.0,0.00714126]
[1737476582512,0.407973,106070.0,106060.0,0.00714126]
[1737476582711,0.707973,106070.0,106040.0,0.02361799]
[1737476582916,0.3608,106050.0,106020.0,0.0412751]
[1737476583210,0.3608,106050.0,106020.0,0.0884691]
[1737476583211,0.3608,106030.0,106020.0,0.0884691]
[1737476583514,0.3608,106030.0,106020.0,0.0412751]
[1737476583712,0.002,106080.0,106050.0,0.047182]
[1737476583908,0.3608,106130.0,106070.0,0.65175079]
[1737476584208,0.28296,106110.0,106090.0,0.69891379]
[1737476584517,0.28310126,106110.0,106090.0,0.3608]
[1737476584708,0.00014126,106110.0,106100.0,0.69891079]
[1737476584909,0.00014126,106110.0,106100.0,0.40796]
[1737476586503,0.00014126,106110.0,106090.0,0.61542798]
[1737476586701,0.28296,106100.0,106090.0,0.407963]
[1737476586901,0.04729626,106110.0,106090.0,0.3608]
[1737476587211,0.04729626,106110.0,106080.0,0.407967]
[1737476587212,1.051723,106100.0,106080.0,0.00999333]
[1737476587409,0.047169,106080.0,106070.0,0.3608]
[1737476587601,0.93542725,106080.0,106030.0,0.3608]
[1737476587803,0.28296,106030.0,106020.0,0.44938956]
[1737476588110,0.28296,106030.0,106020.0,0.40219556]
[1737476588407,0.4073148,106040.0,106020.0,0.36092046]
[1737476588607,0.2617215,106030.0,106020.0,0.37119402]
[1737476588811,0.2617215,106030.0,106020.0,0.36092046]
[1737476589108,0.6235215,106030.0,106000.0,0.1]
[1737476589413,0.6235215,106030.0,106000.0,0.508003]
[1737476589414,0.2617215,106020.0,106000.0,0.508003]
[1737476589603,0.2617215,106020.0,106000.0,0.1]
[1737476589802,0.6225215,106010.0,106000.0,0.11001558]
[1737476590413,0.36094126,106020.0,106000.0,0.11001558]
[1737476590614,0.2617215,106010.0,106000.0,0.11001558]
[1737476590918,0.2617215,106010.0,106000.0,0.1]
[1737476591214,0.00014126,106020.0,106000.0,0.72008218]
[1737476591412,0.001,106030.0,106010.0,0.91892525]
[1737476591712,0.06300212,106040.0,106030.0,0.047191]
[1737476591912,0.06300212,106040.0,106030.0,0.3608]
[1737476592112,0.24994736,106050.0,106030.0,0.90531625]
[1737476592315,0.24994736,106050.0,106040.0,0.407986]
[1737476592316,0.23295663,106050.0,106040.0,0.407986]
[1737476592610,0.46917825,106120.0,106040.0,0.407986]
[1737476592611,0.19780525,106140.0,106070.0,0.047173]
[1737476592816,0.2617215,106110.0,106090.0,0.3608]
[1737476593116,0.2617215,106110.0,106080.0,0.407968]
[1737476593117,0.2617215,106090.0,106080.0,0.407968]
[1737476593315,0.2617215,106090.0,106070.0,0.407973]
[1737476593511,0.2617215,106090.0,106080.0,0.407969]
[1737476593703,0.26186276,106090.0,106070.0,0.40811326]
[1737476594103,0.26186276,106090.0,106080.0,0.407969]
[1737476594308,0.26186276,106090.0,106080.0,0.3608]
[1737476594723,0.26158024,106080.0,106040.0,0.001]
[1737476595017,0.26158024,106070.0,106050.0,0.407978]
[1737476595213,0.407969,106080.0,106050.0,0.407982]
[1737476595407,0.26158024,106070.0,106050.0,0.04718]
[1737476595603,0.3608,106080.0,106060.0,0.047177]
[1737476595812,0.26158024,106080.0,106070.0,0.407969]
[1737476596114,0.00114126,106090.0,106080.0,0.047169]
[1737476596419,0.2627215,106090.0,106080.0,0.047169]
[1737476597011,0.00114126,106090.0,106080.0,0.60529425]
[1737476597210,0.19365393,106100.0,106080.0,0.90529425]
[1737476597409,0.19365393,106100.0,106090.0,0.407964]
[1737476597810,0.45523417,106100.0,106090.0,0.407964]
[1737476598016,0.45523417,106100.0,106080.0,0.047167]
[1737476598230,0.26158024,106090.0,106070.0,0.55812525]
[1737476598517,0.26158024,106090.0,106080.0,0.04731026]
[1737476599711,0.00314126,106100.0,106080.0,0.00114126]
[1737476599908,0.2647215,106100.0,106090.0,0.407964]
[1737476600122,0.00014126,106100.0,106090.0,0.407964]
[1737476600317,0.2627215,106100.0,106090.0,0.407964]
[1737476600719,0.2617215,106100.0,106090.0,0.407964]
[1737476600913,0.00014126,106100.0,106090.0,0.407964]
[1737476601116,0.2617215,106100.0,106090.0,0.407964]
[1737476601313,0.00014126,106100.0,106090.0,0.60528925]
[1737476601517,0.3608,106130.0,106110.0,0.047154]
[1737476601713,0.26158024,106130.0,106120.0,0.047151]
[1737476601918,1.23583818,106160.0,106120.0,0.407951]
[1737476602223,0.26158024,106150.0,106140.0,0.047141]
[1737476602925,0.26158024,106150.0,106140.0,0.407941]
[1737476603136,0.26158024,106150.0,106140.0,0.407942]
[1737476603312,0.41430899,106160.0,106150.0,0.047137]
[1737476603519,0.41430899,106160.0,106150.0,0.60526225]
[1737476603826,0.04710899,106160.0,106150.0,0.60526225]
[1737476604521,0.34710899,106160.0,106130.0,0.3706847]
[1737476604721,0.24447125,106130.0,106100.0,0.047158]
[1737476604923,0.3608,106110.0,106100.0,0.047158]
[1737476606320,0.36094126,106120.0,106110.0,0.047155]
[1737476607121,0.36094126,106120.0,106100.0,0.001]
[1737476607323,0.407955,106110.0,106090.0,0.00014126]
[1737476607522,0.3608,106110.0,106090.0,0.60543051]
[1737476607831,0.3608,106110.0,106100.0,0.04716]
[1737476608034,0.36194126,106120.0,106110.0,0.047155]
[1737476608233,0.00114126,106120.0,106110.0,0.047155]
[1737476608421,0.3608,106160.0,106150.0,0.047137]
[1737476608622,0.1,106200.0,106170.0,0.047129]
[1737476608623,0.3608,106180.0,106170.0,0.047129]
[1737476609429,0.7216,106180.0,106170.0,0.047129]
[1737476609830,0.7266,106180.0,106170.0,0.047129]
[1737476610022,0.7356,106180.0,106170.0,0.047129]
[1737476610224,0.7356,106180.0,106160.0,0.04727426]
[1737476610429,0.7356,106180.0,106160.0,0.00014126]
[1737476610430,0.407929,106170.0,106160.0,0.00014126]
[1737476610830,0.047137,106160.0,106120.0,0.04722783]
[1737476611128,0.3608,106130.0,106120.0,0.04722783]
[1737476611426,0.3608,106140.0,106120.0,0.04722783]
[1737476611730,0.3608,106140.0,106130.0,0.047146]
[1737476612128,0.36094126,106140.0,106130.0,0.047146]
[1737476613028,2.6e-07,106140.0,106130.0,0.60527125]
[1737476613331,0.3668,106170.0,106160.0,0.047133]
[1737476613730,0.3608,106180.0,106170.0,0.047129]
[1737476614036,0.3608,106180.0,106170.0,0.24445425]
[1737476614830,0.3698,106180.0,106170.0,0.24445425]
[1737476615531,0.01,106180.0,106170.0,0.60925425]
[1737476615733,0.1,106200.0,106180.0,0.047124]
[1737476615927,0.1,106200.0,106190.0,0.60524525]
[1737476616129,0.4608,106200.0,106190.0,0.04712]
[1737476616633,0.4608,106200.0,106170.0,0.009]
[1737476616826,0.3608,106180.0,106170.0,0.056129]
[1737476617023,0.7216,106180.0,106170.0,0.05627026]
[1737476617635,0.7216,106180.0,106170.0,0.05127026]
[1737476617930,0.7216,106180.0,106170.0,0.04727026]
[1737476618150,0.7216,106180.0,106160.0,0.047133]
[1737476618339,0.3608,106170.0,106160.0,0.047133]
[1737476619535,0.00014126,106180.0,106160.0,0.90525825]
[1737476619841,0.35834632,106220.0,106210.0,0.047111]
[1737476620332,0.3608,106230.0,106220.0,0.047106]
[1737476621334,0.3608,106230.0,106210.0,0.00214126]
[1737476621632,0.3608,106220.0,106210.0,0.04925226]
[1737476622639,0.3608,106220.0,106210.0,0.04725226]
[1737476623135,0.3608,106220.0,106210.0,0.00014126]
[1737476623341,0.3608,106220.0,106210.0,0.00114126]
[1737476623739,0.3608,106210.0,106150.0,0.90302525]
[1737476623936,0.047116,106200.0,106170.0,0.047129]
[1737476624145,0.7216,106180.0,106170.0,0.047129]
[1737476625043,0.7216,106180.0,106170.0,0.048129]
[1737476625941,0.7226,106180.0,106170.0,0.047129]
[1737476626934,0.7236,106180.0,106170.0,0.055129]
[1737476627435,0.7226,106180.0,106170.0,0.057129]
[1737476629650,0.769724,106180.0,106160.0,0.00014126]
[1737476629940,0.55812525,106170.0,106160.0,0.00014126]
[1737476630146,0.80482525,106170.0,106150.0,0.047136]
[1737476630342,0.3608,106160.0,106140.0,0.04855411]
[1737476630534,0.3608,106150.0,106140.0,0.04855411]
[1737476631442,0.3608,106150.0,106130.0,0.00014126]
[1737476631443,0.55812525,106150.0,106130.0,0.00014126]
[1737476631742,0.3608,106140.0,106130.0,0.00014126]
[1737476633643,0.3608,106140.0,106130.0,0.04728726]
[1737476634342,0.3628,106140.0,106130.0,0.04728726]
[1737476635443,0.002,106140.0,106130.0,0.24461251]
[1737476635650,0.13980203,106160.0,106150.0,0.047137]
[1737476635845,0.52814478,106170.0,106160.0,0.047133]
[1737476636148,0.47515367,106170.0,106160.0,0.047133]
[1737476636833,0.47515367,106170.0,106150.0,0.05801061]
[1737476637034,0.3608,106140.0,106090.0,0.01124992]
[1737476637242,0.3608,106120.0,106100.0,0.147159]
[1737476637438,0.3608,106130.0,106110.0,0.24448025]
[1737476637642,0.3608,106150.0,106140.0,0.047137]
[1737476637947,0.3608,106150.0,106130.0,0.047145]
[1737476638140,0.36094126,106140.0,106130.0,0.047145]
[1737476638547,0.36094126,106140.0,106120.0,0.04729026]
[1737476638749,0.407946,106130.0,106120.0,0.00014126]
[1737476639043,0.407953,106120.0,106090.0,0.21390928]
[1737476639249,0.768762,106100.0,106080.0,0.26674814]
[1737476639549,0.60528925,106090.0,106060.0,0.26058741]
[1737476639744,0.7216,106070.0,106060.0,0.26058741]
[1737476641146,0.7226,106070.0,106060.0,0.26758741]
[1737476641842,0.00014126,106080.0,106070.0,0.047172]
[1737476642035,0.3608,106100.0,106090.0,0.047164]
[1737476642237,0.23188,106120.0,106070.0,0.407972]
[1737476642445,0.55812525,106110.0,106090.0,0.047162]
[1737476642947,0.55812525,106110.0,106100.0,0.047159]
[1737476643345,0.00014126,106110.0,106100.0,0.407959]
[1737476643948,0.00014126,106110.0,106100.0,0.047159]
[1737476644142,0.56126651,106110.0,106090.0,0.04830426]
[1737476644351,0.407959,106100.0,106090.0,0.00114126]
[1737476644539,0.407959,106100.0,106070.0,0.0485831]
[1737476644747,0.55812525,106080.0,106070.0,0.0014141]
[1737476645146,0.55812525,106080.0,106060.0,0.047176]
[1737476645346,0.3608,106070.0,106060.0,0.047176]
[1737476645948,0.19746651,106080.0,106060.0,0.047176]
[1737476646248,0.55826651,106080.0,106060.0,0.047176]
[1737476646447,0.407975,106070.0,106040.0,0.04859959]
[1737476646751,0.3608,106050.0,106040.0,0.00141459]
[1737476647362,0.707983,106050.0,106010.0,0.407999]
[1737476647549,0.55812525,106020.0,106000.0,0.1]
[1737476647747,0.3608,106010.0,106000.0,0.1]
[1737476647948,0.19732525,106030.0,106000.0,0.147201]
[1737476648143,0.00014126,106020.0,106010.0,0.047199]
[1737476648449,0.19746651,106020.0,106000.0,0.1]
[1737476648649,0.19746651,106020.0,106000.0,0.147203]
[1737476649157,0.19746651,106020.0,106000.0,0.508003]
[1737476649461,0.00014126,106020.0,106010.0,0.407999]
[1737476649756,0.3608,106090.0,106030.0,0.047186]
[1737476649950,0.3608,106090.0,106070.0,0.407969]
[1737476650251,0.3608,106090.0,106070.0,0.047169]
[1737476650450,0.19732525,106080.0,106060.0,0.407975]
[1737476650651,0.55812525,106080.0,106060.0,0.407975]
[1737476650856,0.55826651,106080.0,106060.0,0.00014126]
[1737476651150,0.407974,106070.0,106030.0,0.01243427]
[1737476651350,0.55812525,106050.0,106030.0,0.04960469]
[1737476651658,0.55812525,106050.0,106030.0,0.04860469]
[1737476651659,0.3608,106040.0,106030.0,0.04860469]
[1737476651846,1.8608,106040.0,106020.0,0.047194]
[1737476652248,0.55812525,106030.0,106000.0,0.147202]
[1737476652444,0.55812525,106030.0,106000.0,0.1]
[1737476652652,0.3608,106020.0,106000.0,0.147201]
[1737476652845,0.3608,106010.0,106000.0,0.1]
[1737476653244,0.55812525,106010.0,106000.0,0.1]
[1737476653443,0.00014126,106020.0,106000.0,0.508]
[1737476653656,0.00014126,106020.0,106010.0,0.047199]
[1737476654560,0.00014126,106020.0,106010.0,0.60532425]
[1737476654753,0.2319,106060.0,106040.0,0.047184]
[1737476655352,0.5927,106060.0,106040.0,0.047184]
[1737476655552,0.5937,106070.0,106050.0,0.04718]
[1737476655752,0.40811826,106060.0,106040.0,0.00014126]
[1737476655958,0.3608,106050.0,106040.0,0.00014126]
[1737476656851,0.3608,106050.0,106040.0,0.00114126]
[1737476657449,0.00514126,106060.0,106040.0,0.36094126]
[1737476657654,0.00514126,106060.0,106050.0,0.047181]
[1737476658557,0.00014126,106060.0,106050.0,0.047181]
[1737476658858,0.00014126,106060.0,106040.0,0.04832626]
[1737476658859,0.36094126,106060.0,106040.0,0.04832626]
[1737476659057,0.55812525,106050.0,106040.0,0.00114126]
[1737476659455,0.00114126,106060.0,106040.0,0.36194126]
[1737476659656,0.00114126,106060.0,106050.0,0.047181]
[1737476660558,0.00014126,106060.0,106050.0,0.047181]
[1737476660858,0.00714126,106060.0,106050.0,0.047181]
[1737476661258,0.00114126,106060.0,106050.0,0.047181]
[1737476661568,0.00114126,106060.0,106050.0,0.407981]
[1737476662061,0.47227407,106100.0,106080.0,0.047168]
[1737476662264,0.47227407,106100.0,106080.0,0.407965]
[1737476662567,0.19732525,106090.0,106070.0,0.3608]
[1737476662768,0.47227407,106100.0,106080.0,0.047168]
[1737476663163,0.47241533,106100.0,106080.0,0.40810926]
[1737476663358,0.11661533,106100.0,106090.0,0.3608]
[1737476663559,0.12561533,106100.0,106090.0,0.3608]
[1737476664563,0.12561533,106100.0,106090.0,0.3618]
[1737476664866,0.12561533,106100.0,106090.0,0.001]
[1737476665054,0.12561533,106100.0,106090.0,0.3618]
[1737476665669,0.12561533,106100.0,106090.0,0.3628]
[1737476665968,0.16718494,106150.0,106100.0,0.3608]
[1737476666175,0.19732525,106130.0,106100.0,0.5865]
[1737476666358,0.16718494,106150.0,106100.0,0.5865]
[1737476666560,0.55812525,106140.0,106120.0,0.3608]
[1737476666965,0.16718494,106150.0,106130.0,0.3608]
[1737476667170,0.19746651,106140.0,106120.0,0.36094126]
[1737476667471,0.55826651,106140.0,106120.0,0.00014126]
[1737476667660,0.55826651,106140.0,106120.0,0.36094126]
[1737476668162,0.3608,106130.0,106100.0,0.002]
[1737476668363,0.19732525,106110.0,106090.0,0.3608]
[1737476668559,0.19732525,106110.0,106100.0,0.3608]
[1737476669470,0.00014126,106120.0,106100.0,0.3608]
[1737476669768,0.00014126,106120.0,106110.0,0.3608]
[1737476670469,0.00014126,106120.0,106110.0,0.047154]
[1737476671170,0.00614126,106120.0,106110.0,0.047154]
[1737476671569,0.00014126,106120.0,106110.0,0.047154]
[1737476671770,0.00314126,106120.0,106110.0,0.047154]
[1737476672266,0.00314126,106120.0,106110.0,0.407954]
[1737476672468,0.14003408,106160.0,106130.0,0.3608]
[1737476672774,0.01406494,106170.0,106150.0,0.3608]
[1737476672972,0.01406494,106170.0,106160.0,0.047132]
[1737476673266,0.21139019,106170.0,106160.0,0.047132]
[1737476673869,0.21139019,106170.0,106150.0,0.00014126]
[1737476674165,0.3608,106160.0,106120.0,0.2366]
[1737476674367,0.55812525,106140.0,106100.0,0.3608]
[1737476674562,0.55812525,106140.0,106110.0,0.3608]
[1737476674765,0.19732525,106140.0,106110.0,0.3608]
[1737476675370,0.19746651,106140.0,106110.0,0.36094126]
[1737476675769,0.19746651,106140.0,106120.0,0.3608]
[1737476675973,0.20246651,106140.0,106110.0,0.36094126]
[1737476676469,0.19732525,106120.0,106110.0,0.36094126]
[1737476676665,0.00048,106130.0,106110.0,0.36094126]
[1737476676865,0.20246651,106140.0,106110.0,0.36094126]
[1737476677065,1.5,106130.0,106110.0,0.36194126]
[1737476677368,0.56726651,106140.0,106110.0,0.36194126]
[1737476677566,0.3608,106130.0,106110.0,0.36094126]
[1737476677776,0.001,106120.0,106110.0,0.36094126]
[1737476678073,0.001,106120.0,106110.0,0.40809626]
[1737476678274,0.3618,106130.0,106110.0,0.40909626]
[1737476678477,0.19732525,106120.0,106110.0,0.40909626]
[1737476679973,0.20432525,106120.0,106110.0,0.40809626]
[1737476680579,0.007,106120.0,106110.0,0.40809626]
[1737476680974,0.006,106120.0,106110.0,0.40809626]
[1737476681569,0.003,106120.0,106110.0,0.40809626]
[1737476681874,0.005,106120.0,106110.0,0.40809626]
[1737476684169,0.20232525,106120.0,106110.0,0.40809626]
[1737476684672,0.005,106120.0,106110.0,0.40809626]
[1737476685175,0.005,106120.0,106110.0,0.63579626]
[1737476686276,0.20232525,106120.0,106110.0,0.40809626]
[1737476686477,0.20232525,106120.0,106110.0,0.04729626]
[1737476686881,0.005,106120.0,106110.0,0.04729626]
[1737476687379,0.20232525,106120.0,106110.0,0.04729626]
[1737476688485,0.047155,106110.0,106060.0,0.3608]
[1737476688681,0.19732525,106070.0,106060.0,0.047173]
[1737476689185,0.19732525,106070.0,106050.0,0.047178]
[1737476689482,0.3608,106090.0,106070.0,0.047171]
[1737476689483,0.19732525,106080.0,106070.0,0.047171]
[1737476689680,2.05812525,106100.0,106070.0,0.407971]
[1737476689881,0.00014126,106090.0,106080.0,0.3608]
[1737476690076,0.00014126,106090.0,106080.0,0.407965]
[1737476690383,2.6e-07,106090.0,106080.0,0.407965]
[1737476690575,0.0031115,106160.0,106110.0,0.047155]
[1737476690891,0.0031115,106160.0,106150.0,0.047137]
[1737476691782,0.0071115,106160.0,106150.0,0.407937]
[1737476691979,0.4608,106200.0,106150.0,0.407937]
[1737476692184,0.4608,106200.0,106170.0,0.3608]
[1737476692485,0.65812525,106200.0,106170.0,0.407927]
[1737476692677,0.4608,106200.0,106170.0,0.407927]
[1737476692877,0.46268323,106200.0,106170.0,0.407927]
[1737476693273,0.46282449,106200.0,106170.0,0.40806826]
[1737476693680,0.66014974,106200.0,106170.0,0.00014126]
[1737476693881,0.768723,106180.0,106170.0,0.00014126]
[1737476694185,0.047132,106160.0,106110.0,0.16031216]
[1737476694389,0.3608,106140.0,106110.0,0.16031216]
[1737476695183,0.3608,106130.0,106110.0,0.16045342]
[1737476695388,1.8608,106130.0,106110.0,0.16045342]
[1737476695991,0.3608,106130.0,106110.0,0.16045342]
[1737476696192,0.56026651,106140.0,106110.0,0.52125342]
[1737476696385,0.56026651,106140.0,106110.0,0.20760642]
[1737476696884,0.36294126,106140.0,106110.0,0.56840642]
[1737476697191,0.00214126,106140.0,106130.0,0.047146]
[1737476697387,0.00014126,106140.0,106130.0,0.047146]
[1737476697588,0.00202556,106140.0,106130.0,0.047146]
[1737476697790,0.00202556,106140.0,106120.0,0.047149]
[1737476697986,0.3608,106130.0,106120.0,0.047149]
[1737476698190,0.00202556,106140.0,106120.0,0.047149]
[1737476698591,0.00014126,106140.0,106120.0,0.047149]
[1737476698891,0.00214126,106140.0,106120.0,0.047149]
[1737476699092,0.00214126,106140.0,106120.0,0.001]
[1737476699093,0.36294126,106140.0,106120.0,0.001]
[1737476699284,0.407946,106130.0,106120.0,0.001]
[1737476700389,0.3608,106130.0,106120.0,0.001]
[1737476700789,0.407946,106130.0,106120.0,0.001]
[1737476700985,0.90527125,106130.0,106090.0,0.3608]
[1737476701187,0.3608,106100.0,106060.0,0.16031216]
[1737476701396,0.3608,106080.0,106060.0,0.16031216]
[1737476701595,0.3608,106070.0,106060.0,0.16031216]
[1737476702486,0.00014126,106080.0,106060.0,0.16031216]
[1737476702688,0.00014126,106080.0,106060.0,0.16431216]
[1737476703193,0.00014126,106080.0,106070.0,0.407973]
[1737476703785,0.3608,106110.0,106070.0,0.407973]
[1737476703994,0.3608,106110.0,106090.0,0.407962]
[1737476704193,0.40842601,106130.0,106100.0,0.047159]
[1737476704499,0.3608,106130.0,106110.0,0.047154]
[1737476704894,0.3608,106130.0,106110.0,0.06189499]
[1737476705093,0.00014126,106130.0,106120.0,0.3608]
[1737476705287,0.00014126,106130.0,106120.0,0.40795]
[1737476705497,0.00014126,106130.0,106120.0,0.42269099]
[1737476705992,0.50708,106170.0,106120.0,0.3608]
[1737476706300,0.55812525,106180.0,106140.0,0.407938]
[1737476706301,0.60525225,106180.0,106140.0,0.407938]
[1737476706495,0.60525225,106180.0,106150.0,0.047136]
[1737476707197,0.55812525,106160.0,106150.0,0.00014126]
[1737476707505,0.047149,106130.0,106110.0,0.001]
[1737476707699,0.55812525,106120.0,106110.0,0.01574025]
[1737476708000,0.55812525,106120.0,106060.0,0.407974]
[1737476708001,0.04716,106100.0,106070.0,0.047171]
[1737476708209,0.60528925,106090.0,106050.0,0.3608]
[1737476708398,0.60528925,106090.0,106080.0,0.16031216]
[1737476708595,1.26623051,106090.0,106080.0,0.16031216]
[1737476708899,0.19746651,106090.0,106080.0,0.16031216]
[1737476709402,0.55826651,106090.0,106080.0,0.16031216]
[1737476709902,0.60543051,106090.0,106080.0,0.16031216]
[1737476710603,0.90543051,106090.0,106080.0,0.16031216]
[1737476710802,0.90843051,106090.0,106080.0,0.16031216]
[1737476711000,0.54963051,106090.0,106070.0,0.21454344]
[1737476711199,0.3608,106080.0,106070.0,0.21454344]
[1737476711900,0.61043051,106090.0,106070.0,0.21454344]
[1737476712108,0.60843051,106090.0,106070.0,0.21454344]
[1737476712402,0.61143051,106090.0,106070.0,0.21454344]
[1737476712704,0.60843051,106090.0,106070.0,0.21454344]
[1737476712905,0.003,106080.0,106070.0,0.21454344]
[1737476713098,0.003,106080.0,106060.0,0.00014126]
[1737476713099,0.3638,106080.0,106060.0,0.00014126]
[1737476714209,0.003,106080.0,106070.0,0.91892525]
[1737476714505,0.16837873,106110.0,106100.0,0.047159]
[1737476714712,0.16837873,106110.0,106100.0,0.768759]
[1737476715004,0.16837873,106110.0,106090.0,0.3608]
[1737476715598,0.16851999,106110.0,106100.0,0.3608]
[1737476715805,0.16851999,106110.0,106090.0,0.36094126]
[1737476716207,0.16851999,106110.0,106090.0,0.00014126]
[1737476716407,0.77580024,106110.0,106090.0,0.00114126]
[1737476716907,0.57847499,106110.0,106090.0,0.00114126]
[1737476717297,2.27980024,106110.0,106090.0,0.00114126]
[1737476717501,0.77980024,106110.0,106090.0,0.00114126]
[1737476717699,0.00614126,106110.0,106090.0,0.36194126]
[1737476717903,0.00414126,106110.0,106090.0,0.36094126]
[1737476718205,0.00414126,106110.0,106100.0,0.3608]
[1737476718404,0.407947,106130.0,106100.0,0.636759]
[1737476718604,0.407947,106130.0,106100.0,0.275959]
[1737476719002,0.407947,106130.0,106100.0,0.636759]
[1737476719205,0.407947,106130.0,106100.0,0.275959]
[1737476719509,0.40808826,106130.0,106100.0,0.275959]
[1737476719701,0.003,106110.0,106100.0,0.275959]
[1737476719901,0.003,106110.0,106100.0,0.276959]
[1737476720402,0.3608,106120.0,106100.0,0.637759]
[1737476720610,0.3608,106120.0,106100.0,0.276959]
[1737476720809,0.00314126,106130.0,106110.0,0.407953]
[1737476721210,0.00014126,106130.0,106110.0,0.407953]
[1737476721505,0.00014126,106130.0,106120.0,0.3608]
[1737476721710,0.00014126,106130.0,106110.0,0.407953]
[1737476721909,0.36094126,106130.0,106110.0,0.00014126]
[1737476722212,0.60541251,106130.0,106110.0,0.00014126]
[1737476722708,0.00014126,106130.0,106120.0,0.001]
[1737476723305,0.00014126,106130.0,106120.0,0.3618]
[1737476723505,0.00014126,106130.0,106120.0,0.6066]
[1737476723903,0.00014126,106130.0,106120.0,0.6076]
[1737476724303,0.00014126,106130.0,106120.0,0.6066]
[1737476725013,0.00014126,106130.0,106120.0,0.3688]
[1737476725208,0.00014126,106130.0,106120.0,0.008]
[1737476725412,0.90541251,106130.0,106120.0,0.008]
[1737476725609,0.047166,106090.0,106050.0,0.36914348]
[1737476725808,1.5,106080.0,106060.0,0.3608]
[1737476726118,0.40796,106100.0,106060.0,0.3608]
[1737476726306,0.55812525,106110.0,106060.0,0.3608]
[1737476726509,0.00048001,106120.0,106110.0,0.047155]
[1737476726708,0.19732525,106160.0,106110.0,0.455106]
[1737476726914,0.55812525,106160.0,106130.0,0.407944]
[1737476727109,0.00014126,106150.0,106120.0,0.00014126]
[1737476727416,0.00014126,106150.0,106120.0,0.59184126]
[1737476727417,0.40808026,106150.0,106120.0,0.59184126]
[1737476727615,0.007,106130.0,106120.0,0.63998926]
[1737476728111,0.36094126,106150.0,106120.0,0.63998926]
[1737476728112,0.36094126,106150.0,106120.0,0.87258926]
[1737476728303,0.36394126,106150.0,106120.0,0.87258926]
[1737476728506,0.00314126,106150.0,106120.0,0.64168926]
[1737476728717,0.36094126,106150.0,106120.0,0.59454126]
[1737476728915,0.36094126,106150.0,106130.0,0.047146]
[1737476729111,0.36094126,106150.0,106120.0,0.28488926]
[1737476729306,0.40807926,106150.0,106120.0,0.28088926]
[1737476729606,0.3608,106140.0,106120.0,0.28088926]
[1737476729813,0.52038265,106150.0,106120.0,0.28088926]
[1737476730015,0.52038265,106150.0,106120.0,0.28188926]
[1737476730410,0.3608,106140.0,106120.0,0.28188926]
[1737476730720,0.407946,106130.0,106120.0,0.00014126]
[1737476731415,0.047153,106120.0,106080.0,0.455131]
[1737476731610,0.3608,106100.0,106080.0,0.455131]
[1737476731817,0.407955,106110.0,106080.0,0.455131]
[1737476732007,0.3608,106100.0,106080.0,0.455131]
[1737476732212,0.19732525,106120.0,106100.0,0.047159]
[1737476732519,0.19746651,106120.0,106100.0,0.04730026]
[1737476732715,0.3608,106110.0,106100.0,0.00014126]
[1737476732913,0.00014126,106120.0,106100.0,0.36094126]
[1737476733113,0.36094126,106120.0,106100.0,0.36094126]
[1737476733715,0.00014126,106120.0,106100.0,0.00014126]
[1737476733918,0.3608,106110.0,106100.0,0.00014126]
[1737476734613,0.36094126,106120.0,106100.0,0.00014126]
[1737476734813,0.00014126,106120.0,106100.0,0.00014126]
[1737476735013,0.36094126,106120.0,106100.0,0.00014126]
[1737476735217,0.00014126,106120.0,106100.0,0.00014126]
[1737476735514,0.00014126,106120.0,106100.0,0.00914126]